[Event "Titled Tuesday Blitz March 21 Early 2023"]
[White "Sarana, Alexey"]
[Black "Kilic, Eray"]
[WhiteFideId "24133795"]
[BlackFideId "44517173"]
[WhiteElo "2714"]
[BlackElo "2328"]
[Result "1-0"]
[Round "10"]
[TimeControl "180+2"]
[Date "2023.03.21"]
[WhiteClock "0:00:16"]
[BlackClock "0:00:16"]

1. d4 {[%clk 0:01:44]}  Nf6 {[%clk 0:02:58]} 2. c4 {[%clk 0:01:44]}  e6 {[%clk 0:02:59]} 3. Nc3 {[%clk 0:01:45]}  Bb4 {[%clk 0:02:59]} 4. e3 {[%clk 0:01:46]}  O-O {[%clk 0:02:58]} 5. Bd3 {[%clk 0:01:47]}  d5 {[%clk 0:02:59]} 6. a3 {[%clk 0:01:47]}  Bxc3+ {[%clk 0:02:58]} 7. bxc3 {[%clk 0:01:48]}  c5 {[%clk 0:02:57]} 8. cxd5 {[%clk 0:01:48]}  Qxd5 {[%clk 0:02:53]} 9. Nf3 {[%clk 0:01:48]}  cxd4 {[%clk 0:02:51]} 10. cxd4 {[%clk 0:01:44]}  Nc6 {[%clk 0:02:51]} 11. O-O {[%clk 0:01:42]}  Rd8 {[%clk 0:02:45]} 12. Qe2 {[%clk 0:01:39]}  e5 {[%clk 0:02:35]} 13. e4 {[%clk 0:01:14]}  Qd6 {[%clk 0:02:22]} 14. d5 {[%clk 0:01:13]}  Bg4 {[%clk 0:02:01]} 15. Bb2 {[%clk 0:01:12]}  Bxf3 {[%clk 0:01:40]} 16. Qxf3 {[%clk 0:01:12]}  Ne7 {[%clk 0:01:40]} 17. h3 {[%clk 0:01:02]}  Nd7 {[%clk 0:01:39]} 18. Qe3 {[%clk 0:00:58]}  Ng6 {[%clk 0:01:38]} 19. g3 {[%clk 0:00:58]}  Nc5 {[%clk 0:01:38]} 20. Be2 {[%clk 0:00:58]}  b6 {[%clk 0:01:36]} 21. a4 {[%clk 0:00:57]}  Qd7 {[%clk 0:01:35]} 22. Bg4 {[%clk 0:00:55]}  Qb7 {[%clk 0:01:34]} 23. a5 {[%clk 0:00:55]}  Ne7 {[%clk 0:01:32]} 24. Bxe5 {[%clk 0:00:54]}  f6 {[%clk 0:01:30]} 25. Bb2 {[%clk 0:00:53]}  f5 {[%clk 0:01:30]} 26. Qg5 {[%clk 0:00:51]}  Nxd5 {[%clk 0:01:18]} 27. Bxf5 {[%clk 0:00:51]}  Nb4 {[%clk 0:01:18]} 28. axb6 {[%clk 0:00:49]}  axb6 {[%clk 0:01:17]} 29. Qh5 {[%clk 0:00:37]}  g6 {[%clk 0:01:10]} 30. Bxg6 {[%clk 0:00:36]}  hxg6 {[%clk 0:01:11]} 31. Qxg6+ {[%clk 0:00:36]}  Kf8 {[%clk 0:01:11]} 32. Qh6+ {[%clk 0:00:32]}  Kf7 {[%clk 0:01:06]} 33. e5 {[%clk 0:00:20]}  Qe7 {[%clk 0:00:40]} 34. Rae1 {[%clk 0:00:18]}  Ne6 {[%clk 0:00:36]} 35. Re3 {[%clk 0:00:16]}  Rh8 {[%clk 0:00:34]} 36. Rf3+ {[%clk 0:00:16]}  Kg8 {[%clk 0:00:35]} 37. Qg6+ {[%clk 0:00:16]}  Ng7 {[%clk 0:00:32]} 38. e6 {[%clk 0:00:16]}  Rf8 {[%clk 0:00:23]} 39. Rxf8+ {[%clk 0:00:17]}  Qxf8 {[%clk 0:00:18]} 40. Rd1 {[%clk 0:00:18]}  Nc6 {[%clk 0:00:17]} 41. Rd7 {[%clk 0:00:17]}  Rh7 {[%clk 0:00:16]} 42. Rf7 {[%clk 0:00:16]} 1-0


[Site "https://www.chess.com"]

[Event "Titled Tuesday Blitz March 21 Early 2023"]
[White "Moroni, Luca Jr"]
[Black "Kosteniuk, Alexandra"]
[WhiteFideId "865834"]
[BlackFideId "4128125"]
[WhiteElo "2569"]
[BlackElo "2453"]
[Result "1-0"]
[Round "10"]
[TimeControl "180+2"]
[Date "2023.03.21"]
[WhiteClock "0:00:09"]
[BlackClock "0:00:02"]

1. e4 {[%clk 0:03:00]}  c6 {[%clk 0:02:59]} 2. d4 {[%clk 0:02:50]}  d5 {[%clk 0:02:59]} 3. exd5 {[%clk 0:02:51]}  cxd5 {[%clk 0:02:59]} 4. Bd3 {[%clk 0:02:52]}  Nc6 {[%clk 0:02:59]} 5. c3 {[%clk 0:02:52]}  Nf6 {[%clk 0:02:58]} 6. Bf4 {[%clk 0:02:52]}  Bg4 {[%clk 0:02:55]} 7. Qb3 {[%clk 0:02:52]}  Qd7 {[%clk 0:02:53]} 8. Nd2 {[%clk 0:02:52]}  e6 {[%clk 0:02:53]} 9. h3 {[%clk 0:02:52]}  Bh5 {[%clk 0:02:52]} 10. Ngf3 {[%clk 0:02:52]}  Bxf3 {[%clk 0:02:52]} 11. Nxf3 {[%clk 0:02:53]}  Bd6 {[%clk 0:02:52]} 12. Ne5 {[%clk 0:02:50]}  Qc7 {[%clk 0:02:40]} 13. O-O {[%clk 0:02:44]}  Bxe5 {[%clk 0:02:29]} 14. dxe5 {[%clk 0:02:45]}  Nd7 {[%clk 0:02:29]} 15. Rfe1 {[%clk 0:02:35]}  Nc5 {[%clk 0:02:23]} 16. Qd1 {[%clk 0:02:33]}  Nxd3 {[%clk 0:02:23]} 17. Qxd3 {[%clk 0:02:34]}  Ne7 {[%clk 0:02:23]} 18. h4 {[%clk 0:02:30]}  O-O-O {[%clk 0:02:18]} 19. b3 {[%clk 0:02:28]}  Kb8 {[%clk 0:02:16]} 20. Rac1 {[%clk 0:02:29]}  Nf5 {[%clk 0:02:14]} 21. g3 {[%clk 0:02:26]}  h6 {[%clk 0:02:14]} 22. Qf3 {[%clk 0:02:16]}  Rdg8 {[%clk 0:02:08]} 23. c4 {[%clk 0:02:14]}  d4 {[%clk 0:02:06]} 24. Bd2 {[%clk 0:02:04]}  Rc8 {[%clk 0:01:42]} 25. b4 {[%clk 0:01:58]}  Qc6 {[%clk 0:01:38]} 26. Qxc6 {[%clk 0:01:58]}  Rxc6 {[%clk 0:01:38]} 27. Re4 {[%clk 0:01:56]}  Rd8 {[%clk 0:01:34]} 28. h5 {[%clk 0:01:53]}  d3 {[%clk 0:01:29]} 29. Kg2 {[%clk 0:01:49]}  Nd4 {[%clk 0:01:22]} 30. c5 {[%clk 0:01:38]}  Nc2 {[%clk 0:01:18]} 31. g4 {[%clk 0:01:24]}  b6 {[%clk 0:01:12]} 32. cxb6 {[%clk 0:01:21]}  axb6 {[%clk 0:01:11]} 33. f4 {[%clk 0:01:18]}  b5 {[%clk 0:01:07]} 34. g5 {[%clk 0:01:17]}  Rc4 {[%clk 0:01:02]} 35. Kf3 {[%clk 0:01:09]}  Nd4+ {[%clk 0:00:36]} 36. Kg4 {[%clk 0:01:09]}  Rxc1 {[%clk 0:00:27]} 37. Bxc1 {[%clk 0:01:10]}  Kb7 {[%clk 0:00:16]} 38. Bd2 {[%clk 0:00:59]}  Kc6 {[%clk 0:00:16]} 39. Re1 {[%clk 0:00:55]}  Kd5 {[%clk 0:00:15]} 40. Rc1 {[%clk 0:00:53]}  Nc2 {[%clk 0:00:16]} 41. f5 {[%clk 0:00:52]}  Kxe5 {[%clk 0:00:14]} 42. f6 {[%clk 0:00:48]}  gxf6 {[%clk 0:00:13]} 43. gxh6 {[%clk 0:00:49]}  f5+ {[%clk 0:00:13]} 44. Kh4 {[%clk 0:00:44]}  Rd4+ {[%clk 0:00:11]} 45. Kh3 {[%clk 0:00:43]}  Rd8 {[%clk 0:00:09]} 46. Rg1 {[%clk 0:00:39]}  Rh8 {[%clk 0:00:09]} 47. Rg7 {[%clk 0:00:32]}  f4 {[%clk 0:00:09]} 48. h7 {[%clk 0:00:32]}  Kf6 {[%clk 0:00:08]} 49. h6 {[%clk 0:00:31]}  Ne3 {[%clk 0:00:08]} 50. Bc3+ {[%clk 0:00:08]}  e5 {[%clk 0:00:09]} 51. Kh2 {[%clk 0:00:07]}  Nf5 {[%clk 0:00:09]} 52. Kg2 {[%clk 0:00:07]}  Nxg7 {[%clk 0:00:08]} 53. Bxe5+ {[%clk 0:00:08]}  Kxe5 {[%clk 0:00:02]} 54. hxg7 {[%clk 0:00:09]} 1-0


[Site "https://www.chess.com"]

[Event "Titled Tuesday Blitz March 21 Early 2023"]
[White "Ibarra Jerez, Jose Carlos"]
[Black "Molina, Roberto Junio Brito"]
[WhiteFideId "2226332"]
[BlackFideId "2109450"]
[WhiteElo "2638"]
[BlackElo "2376"]
[Result "1-0"]
[Round "10"]
[TimeControl "180+2"]
[Date "2023.03.21"]
[WhiteClock "0:00:06"]
[BlackClock "0:00:11"]

1. Nf3 {[%clk 0:03:00]}  d5 {[%clk 0:02:59]} 2. g3 {[%clk 0:03:00]}  c6 {[%clk 0:02:58]} 3. Bg2 {[%clk 0:03:00]}  Bg4 {[%clk 0:02:58]} 4. h3 {[%clk 0:03:00]}  Bh5 {[%clk 0:02:58]} 5. O-O {[%clk 0:03:00]}  Nd7 {[%clk 0:02:58]} 6. c4 {[%clk 0:03:00]}  e6 {[%clk 0:02:59]} 7. cxd5 {[%clk 0:02:58]}  cxd5 {[%clk 0:02:59]} 8. d4 {[%clk 0:02:39]}  Ngf6 {[%clk 0:02:57]} 9. Nc3 {[%clk 0:02:37]}  a6 {[%clk 0:02:54]} 10. Ne5 {[%clk 0:02:29]}  Be7 {[%clk 0:02:47]} 11. Qb3 {[%clk 0:02:27]}  Qb6 {[%clk 0:02:41]} 12. Qxb6 {[%clk 0:02:17]}  Nxb6 {[%clk 0:02:42]} 13. g4 {[%clk 0:02:17]}  Bg6 {[%clk 0:02:41]} 14. f4 {[%clk 0:02:18]}  Bc2 {[%clk 0:02:39]} 15. e3 {[%clk 0:02:15]}  Ne4 {[%clk 0:02:35]} 16. Nb1 {[%clk 0:01:29]}  f6 {[%clk 0:02:29]} 17. Nf3 {[%clk 0:01:28]}  Rc8 {[%clk 0:02:23]} 18. Nfd2 {[%clk 0:00:54]}  Bd3 {[%clk 0:01:38]} 19. Rd1 {[%clk 0:00:54]}  Kd7 {[%clk 0:01:33]} 20. Nxe4 {[%clk 0:00:50]}  dxe4 {[%clk 0:01:28]} 21. Nc3 {[%clk 0:00:50]}  f5 {[%clk 0:01:28]} 22. Rxd3 {[%clk 0:00:47]}  exd3 {[%clk 0:01:27]} 23. Bxb7 {[%clk 0:00:47]}  Rxc3 {[%clk 0:01:20]} 24. bxc3 {[%clk 0:00:46]}  Nc4 {[%clk 0:01:20]} 25. Bxa6 {[%clk 0:00:35]}  d2 {[%clk 0:01:19]} 26. Bxd2 {[%clk 0:00:24]}  Nxd2 {[%clk 0:01:20]} 27. gxf5 {[%clk 0:00:24]}  exf5 {[%clk 0:01:18]} 28. Bd3 {[%clk 0:00:25]}  g6 {[%clk 0:01:13]} 29. Kf2 {[%clk 0:00:18]}  Rb8 {[%clk 0:01:12]} 30. Rc1 {[%clk 0:00:15]}  Ne4+ {[%clk 0:01:03]} 31. Kf3 {[%clk 0:00:07]}  Rb2 {[%clk 0:00:55]} 32. Bxe4 {[%clk 0:00:06]}  fxe4+ {[%clk 0:00:55]} 33. Kxe4 {[%clk 0:00:07]}  Rxa2 {[%clk 0:00:55]} 34. Rh1 {[%clk 0:00:07]}  Ra3 {[%clk 0:00:45]} 35. Kd3 {[%clk 0:00:05]}  Bb4 {[%clk 0:00:45]} 36. Rc1 {[%clk 0:00:06]}  Ba5 {[%clk 0:00:44]} 37. e4 {[%clk 0:00:06]}  Ra2 {[%clk 0:00:43]} 38. Kc4 {[%clk 0:00:06]}  Rh2 {[%clk 0:00:43]} 39. Ra1 {[%clk 0:00:06]}  Bc7 {[%clk 0:00:43]} 40. e5 {[%clk 0:00:06]}  Rxh3 {[%clk 0:00:42]} 41. Ra7 {[%clk 0:00:04]}  Rf3 {[%clk 0:00:41]} 42. d5 {[%clk 0:00:04]}  Rxf4+ {[%clk 0:00:42]} 43. Kc5 {[%clk 0:00:05]}  Kc8 {[%clk 0:00:40]} 44. d6 {[%clk 0:00:05]}  Bb8 {[%clk 0:00:29]} 45. Rxh7 {[%clk 0:00:06]}  Re4 {[%clk 0:00:16]} 46. Kd5 {[%clk 0:00:06]}  Re1 {[%clk 0:00:15]} 47. Kc6 {[%clk 0:00:06]}  Bxd6 {[%clk 0:00:11]} 48. exd6 {[%clk 0:00:06]} 1-0


[Site "https://www.chess.com"]

[Event "Titled Tuesday Blitz March 21 Early 2023"]
[White "Bronstein, Or"]
[Black "Nogerbek, Kazybek"]
[WhiteFideId "2815770"]
[BlackFideId "13710427"]
[WhiteElo "2356"]
[BlackElo "2501"]
[Result "0-1"]
[Round "10"]
[TimeControl "180+2"]
[Date "2023.03.21"]
[WhiteClock "0:00:12"]
[BlackClock "0:01:36"]

1. Nf3 {[%clk 0:03:00]}  g6 {[%clk 0:02:59]} 2. e4 {[%clk 0:02:59]}  Bg7 {[%clk 0:02:58]} 3. d4 {[%clk 0:02:59]}  d6 {[%clk 0:02:58]} 4. Nc3 {[%clk 0:02:58]}  Nc6 {[%clk 0:02:59]} 5. d5 {[%clk 0:02:56]}  Nb8 {[%clk 0:02:58]} 6. Be3 {[%clk 0:02:52]}  Bg4 {[%clk 0:02:58]} 7. Qd2 {[%clk 0:02:51]}  Bxf3 {[%clk 0:02:58]} 8. gxf3 {[%clk 0:02:51]}  c6 {[%clk 0:02:59]} 9. Bc4 {[%clk 0:02:46]}  Nf6 {[%clk 0:02:57]} 10. Bb3 {[%clk 0:02:43]}  Nbd7 {[%clk 0:02:55]} 11. dxc6 {[%clk 0:02:40]}  bxc6 {[%clk 0:02:55]} 12. h4 {[%clk 0:02:36]}  Qa5 {[%clk 0:02:52]} 13. O-O-O {[%clk 0:02:31]}  Nc5 {[%clk 0:02:48]} 14. Kb1 {[%clk 0:02:31]}  Nxb3 {[%clk 0:02:46]} 15. axb3 {[%clk 0:02:31]}  h5 {[%clk 0:02:23]} 16. Rhg1 {[%clk 0:02:28]}  O-O {[%clk 0:02:23]} 17. Rg5 {[%clk 0:02:24]}  Qb4 {[%clk 0:02:23]} 18. Rdg1 {[%clk 0:02:13]}  a5 {[%clk 0:02:20]} 19. Qd3 {[%clk 0:02:11]}  a4 {[%clk 0:02:14]} 20. bxa4 {[%clk 0:01:49]}  Rfb8 {[%clk 0:02:06]} 21. Bc1 {[%clk 0:01:17]}  Nh7 {[%clk 0:02:01]} 22. Rxg6 {[%clk 0:00:41]}  fxg6 {[%clk 0:01:57]} 23. e5 {[%clk 0:00:37]}  Bxe5 {[%clk 0:01:46]} 24. Qxg6+ {[%clk 0:00:28]}  Kh8 {[%clk 0:01:47]} 25. Nd1 {[%clk 0:00:11]}  Qxa4 {[%clk 0:01:38]} 26. c3 {[%clk 0:00:12]}  Rg8 {[%clk 0:01:36]} 0-1


[Site "https://www.chess.com"]

[Event "Titled Tuesday Blitz March 21 Early 2023"]
[White "Rozman, Levy"]
[Black "Kobo, Ori"]
[WhiteFideId "2039877"]
[BlackFideId "2812320"]
[WhiteElo "2376"]
[BlackElo "2447"]
[Result "1-0"]
[Round "10"]
[TimeControl "180+2"]
[Date "2023.03.21"]
[WhiteClock "0:00:07"]
[BlackClock "0:00:04"]

1. e4 {[%clk 0:03:00]}  g6 {[%clk 0:02:58]} 2. Bc4 {[%clk 0:02:57]}  Bg7 {[%clk 0:02:58]} 3. Qf3 {[%clk 0:02:57]}  e6 {[%clk 0:02:57]} 4. d4 {[%clk 0:02:58]}  d6 {[%clk 0:02:48]} 5. Ne2 {[%clk 0:02:58]}  Nf6 {[%clk 0:02:38]} 6. O-O {[%clk 0:02:52]}  O-O {[%clk 0:02:30]} 7. Nbc3 {[%clk 0:02:44]}  Nc6 {[%clk 0:02:21]} 8. Be3 {[%clk 0:02:35]}  e5 {[%clk 0:02:16]} 9. h3 {[%clk 0:02:29]}  exd4 {[%clk 0:02:12]} 10. Nxd4 {[%clk 0:02:27]}  Ne5 {[%clk 0:02:12]} 11. Qe2 {[%clk 0:02:21]}  Nxc4 {[%clk 0:02:13]} 12. Qxc4 {[%clk 0:02:22]}  Re8 {[%clk 0:02:13]} 13. Ndb5 {[%clk 0:02:00]}  c6 {[%clk 0:02:08]} 14. Nxa7 {[%clk 0:02:01]}  Be6 {[%clk 0:02:00]} 15. Qb4 {[%clk 0:02:00]}  Qe7 {[%clk 0:01:44]} 16. Rad1 {[%clk 0:01:51]}  c5 {[%clk 0:01:16]} 17. Qb6 {[%clk 0:01:45]}  Nd7 {[%clk 0:01:16]} 18. Qxb7 {[%clk 0:01:46]}  Reb8 {[%clk 0:01:06]} 19. Nc6 {[%clk 0:01:44]}  Rxb7 {[%clk 0:01:06]} 20. Nxe7+ {[%clk 0:01:44]}  Kf8 {[%clk 0:01:07]} 21. Ned5 {[%clk 0:01:30]}  Rxb2 {[%clk 0:01:05]} 22. a4 {[%clk 0:01:25]}  Rxc2 {[%clk 0:01:01]} 23. Nc7 {[%clk 0:01:13]}  Ra7 {[%clk 0:00:54]} 24. N3b5 {[%clk 0:01:10]}  Rxa4 {[%clk 0:00:36]} 25. Nxe6+ {[%clk 0:01:03]}  fxe6 {[%clk 0:00:36]} 26. Rxd6 {[%clk 0:01:04]}  Ke7 {[%clk 0:00:26]} 27. Rfd1 {[%clk 0:00:58]}  Ne5 {[%clk 0:00:20]} 28. Nc7 {[%clk 0:00:49]}  Rca2 {[%clk 0:00:10]} 29. Nxe6 {[%clk 0:00:34]}  Bf6 {[%clk 0:00:09]} 30. Nxc5 {[%clk 0:00:34]}  R4a3 {[%clk 0:00:07]} 31. Re6+ {[%clk 0:00:29]}  Kf7 {[%clk 0:00:07]} 32. Rb6 {[%clk 0:00:27]}  Ra1 {[%clk 0:00:04]} 33. Rb7+ {[%clk 0:00:25]}  Kg8 {[%clk 0:00:04]} 34. Rxa1 {[%clk 0:00:23]}  Rxa1+ {[%clk 0:00:04]} 35. Kh2 {[%clk 0:00:23]}  Nc4 {[%clk 0:00:05]} 36. Bf4 {[%clk 0:00:22]}  g5 {[%clk 0:00:05]} 37. Nd7 {[%clk 0:00:16]}  Be7 {[%clk 0:00:04]} 38. Bg3 {[%clk 0:00:13]}  h5 {[%clk 0:00:04]} 39. Ne5 {[%clk 0:00:11]}  h4 {[%clk 0:00:02]} 40. Rxe7 {[%clk 0:00:08]}  hxg3+ {[%clk 0:00:03]} 41. Kxg3 {[%clk 0:00:08]}  Nd2 {[%clk 0:00:03]} 42. Nf3 {[%clk 0:00:04]}  Nf1+ {[%clk 0:00:03]} 43. Kg4 {[%clk 0:00:04]}  Ra5 {[%clk 0:00:03]} 44. e5 {[%clk 0:00:04]}  Kf8 {[%clk 0:00:04]} 45. Re6 {[%clk 0:00:04]}  Kf7 {[%clk 0:00:03]} 46. Rf6+ {[%clk 0:00:05]}  Kg7 {[%clk 0:00:04]} 47. Rd6 {[%clk 0:00:05]}  Kf7 {[%clk 0:00:03]} 48. Rd1 {[%clk 0:00:05]}  Ra4+ {[%clk 0:00:03]} 49. Kxg5 {[%clk 0:00:05]}  Ke6 {[%clk 0:00:02]} 50. Rxf1 {[%clk 0:00:05]}  Ra8 {[%clk 0:00:03]} 51. Re1 {[%clk 0:00:05]}  Rg8+ {[%clk 0:00:04]} 52. Kf4 {[%clk 0:00:06]}  Rxg2 {[%clk 0:00:04]} 53. Ng5+ {[%clk 0:00:06]}  Ke7 {[%clk 0:00:04]} 54. f3 {[%clk 0:00:07]} 1-0


[Site "https://www.chess.com"]

[Event "Titled Tuesday Blitz March 21 Early 2023"]
[White "Aditya Mittal"]
[Black "Popov, Mikhail"]
[WhiteFideId "35042025"]
[BlackFideId "4146182"]
[WhiteElo "2396"]
[BlackElo "2270"]
[Result "1/2-1/2"]
[Round "10"]
[TimeControl "180+2"]
[Date "2023.03.21"]
[WhiteClock "0:01:28"]
[BlackClock "0:00:32"]

1. d4 {[%clk 0:03:00]}  Nf6 {[%clk 0:02:59]} 2. c4 {[%clk 0:03:01]}  g6 {[%clk 0:03:00]} 3. Nc3 {[%clk 0:03:01]}  d5 {[%clk 0:03:00]} 4. cxd5 {[%clk 0:02:58]}  Nxd5 {[%clk 0:03:01]} 5. Bd2 {[%clk 0:02:59]}  Bg7 {[%clk 0:03:01]} 6. e4 {[%clk 0:03:00]}  Nxc3 {[%clk 0:03:01]} 7. Bxc3 {[%clk 0:03:01]}  O-O {[%clk 0:03:02]} 8. Qd2 {[%clk 0:03:01]}  e5 {[%clk 0:03:01]} 9. dxe5 {[%clk 0:02:56]}  Qh4 {[%clk 0:02:44]} 10. Nf3 {[%clk 0:02:39]}  Qxe4+ {[%clk 0:02:41]} 11. Be2 {[%clk 0:02:40]}  Nc6 {[%clk 0:02:38]} 12. O-O {[%clk 0:02:23]}  Rd8 {[%clk 0:02:27]} 13. Qe3 {[%clk 0:02:03]}  Qxe3 {[%clk 0:02:24]} 14. fxe3 {[%clk 0:02:04]}  Bg4 {[%clk 0:02:13]} 15. h3 {[%clk 0:01:39]}  Bxf3 {[%clk 0:01:41]} 16. Bxf3 {[%clk 0:01:40]}  Bxe5 {[%clk 0:01:31]} 17. Bxc6 {[%clk 0:01:40]}  Bxc3 {[%clk 0:01:31]} 18. Bxb7 {[%clk 0:01:40]}  Rab8 {[%clk 0:01:31]} 19. bxc3 {[%clk 0:01:35]}  Rxb7 {[%clk 0:01:29]} 20. Rad1 {[%clk 0:01:32]}  Rxd1 {[%clk 0:01:16]} 21. Rxd1 {[%clk 0:01:33]}  Rb2 {[%clk 0:01:15]} 22. Rd7 {[%clk 0:01:33]}  Rxa2 {[%clk 0:01:09]} 23. Rxc7 {[%clk 0:01:33]}  h5 {[%clk 0:00:56]} 24. h4 {[%clk 0:01:29]}  Rc2 {[%clk 0:00:33]} 25. Rxa7 {[%clk 0:01:28]}  Rxc3 {[%clk 0:00:32]} 1/2-1/2


[Site "https://www.chess.com"]

[Event "Titled Tuesday Blitz March 21 Early 2023"]
[White "Averjanov, Alexey"]
[Black "benny_aizenberg"]
[WhiteFideId "14109867"]
[WhiteElo "2823"]
[BlackElo "2597"]
[Result "1-0"]
[Round "10"]
[TimeControl "180+2"]
[Date "2023.03.21"]
[WhiteClock "0:00:09"]
[BlackClock "0:00:03"]

1. d4 {[%clk 0:02:59]}  Nf6 {[%clk 0:02:57]} 2. c4 {[%clk 0:02:59]}  e6 {[%clk 0:02:53]} 3. Nf3 {[%clk 0:02:58]}  d5 {[%clk 0:02:53]} 4. e3 {[%clk 0:02:58]}  c5 {[%clk 0:02:51]} 5. dxc5 {[%clk 0:02:58]}  Bxc5 {[%clk 0:02:51]} 6. a3 {[%clk 0:02:58]}  a5 {[%clk 0:02:48]} 7. Nc3 {[%clk 0:02:58]}  Nc6 {[%clk 0:02:48]} 8. cxd5 {[%clk 0:02:58]}  exd5 {[%clk 0:02:47]} 9. Be2 {[%clk 0:02:59]}  O-O {[%clk 0:02:47]} 10. Nb5 {[%clk 0:02:58]}  Ne4 {[%clk 0:02:42]} 11. O-O {[%clk 0:02:58]}  Bf5 {[%clk 0:02:41]} 12. Nfd4 {[%clk 0:02:56]}  Bg6 {[%clk 0:02:39]} 13. b3 {[%clk 0:02:52]}  Nxd4 {[%clk 0:02:37]} 14. Nxd4 {[%clk 0:02:45]}  Nc3 {[%clk 0:02:36]} 15. Qd2 {[%clk 0:02:44]}  Bxd4 {[%clk 0:02:33]} 16. exd4 {[%clk 0:02:43]}  Nxe2+ {[%clk 0:02:33]} 17. Qxe2 {[%clk 0:02:44]}  Qf6 {[%clk 0:02:32]} 18. Be3 {[%clk 0:02:39]}  Qb6 {[%clk 0:02:24]} 19. Qb2 {[%clk 0:02:15]}  Rac8 {[%clk 0:02:21]} 20. Rac1 {[%clk 0:02:13]}  Qb5 {[%clk 0:02:14]} 21. Rc5 {[%clk 0:02:09]}  Rxc5 {[%clk 0:02:12]} 22. dxc5 {[%clk 0:02:09]}  Re8 {[%clk 0:02:10]} 23. Rc1 {[%clk 0:02:03]}  f6 {[%clk 0:02:02]} 24. Qc3 {[%clk 0:02:02]}  Qd3 {[%clk 0:01:54]} 25. h3 {[%clk 0:01:50]}  Qxc3 {[%clk 0:01:41]} 26. Rxc3 {[%clk 0:01:51]}  Re4 {[%clk 0:01:41]} 27. Rd3 {[%clk 0:01:17]}  Bf7 {[%clk 0:01:34]} 28. f3 {[%clk 0:01:15]}  Re5 {[%clk 0:01:25]} 29. Kf2 {[%clk 0:01:13]}  Kf8 {[%clk 0:01:25]} 30. Bd4 {[%clk 0:01:13]}  Re8 {[%clk 0:01:25]} 31. Rd2 {[%clk 0:01:09]}  Ke7 {[%clk 0:01:25]} 32. a4 {[%clk 0:01:05]}  Kd7 {[%clk 0:01:25]} 33. Bc3 {[%clk 0:01:04]}  Kc6 {[%clk 0:01:23]} 34. Bxa5 {[%clk 0:01:01]}  Kxc5 {[%clk 0:01:23]} 35. Rc2+ {[%clk 0:01:01]}  Kd6 {[%clk 0:01:24]} 36. Rc7 {[%clk 0:00:58]}  Re7 {[%clk 0:01:24]} 37. Rc8 {[%clk 0:00:54]}  Kd7 {[%clk 0:01:23]} 38. Rd8+ {[%clk 0:00:52]}  Kc6 {[%clk 0:01:21]} 39. Bb4 {[%clk 0:00:49]}  Rd7 {[%clk 0:01:21]} 40. Rc8+ {[%clk 0:00:49]}  Rc7 {[%clk 0:01:19]} 41. Rd8 {[%clk 0:00:46]}  Rd7 {[%clk 0:01:19]} 42. Rc8+ {[%clk 0:00:46]}  Rc7 {[%clk 0:01:19]} 43. Rh8 {[%clk 0:00:44]}  d4 {[%clk 0:01:15]} 44. Rd8 {[%clk 0:00:44]}  Rd7 {[%clk 0:01:11]} 45. Rc8+ {[%clk 0:00:44]}  Rc7 {[%clk 0:01:05]} 46. Rd8 {[%clk 0:00:44]}  Rd7 {[%clk 0:01:05]} 47. Rc8+ {[%clk 0:00:42]}  Kd5 {[%clk 0:01:01]} 48. Rc5+ {[%clk 0:00:38]}  Ke6 {[%clk 0:00:57]} 49. Ke2 {[%clk 0:00:37]}  Bg6 {[%clk 0:00:49]} 50. Kd2 {[%clk 0:00:37]}  Rd5 {[%clk 0:00:47]} 51. Rc7 {[%clk 0:00:35]}  Rd7 {[%clk 0:00:47]} 52. Rxd7 {[%clk 0:00:34]}  Kxd7 {[%clk 0:00:47]} 53. Bf8 {[%clk 0:00:33]}  Bf7 {[%clk 0:00:46]} 54. Bxg7 {[%clk 0:00:30]}  Bxb3 {[%clk 0:00:45]} 55. Bxf6 {[%clk 0:00:30]}  Bxa4 {[%clk 0:00:45]} 56. Bxd4 {[%clk 0:00:29]}  Ke6 {[%clk 0:00:43]} 57. Ke3 {[%clk 0:00:27]}  h5 {[%clk 0:00:38]} 58. Kf4 {[%clk 0:00:25]}  Be8 {[%clk 0:00:36]} 59. Kg5 {[%clk 0:00:23]}  b5 {[%clk 0:00:37]} 60. Bc3 {[%clk 0:00:23]}  Ke7 {[%clk 0:00:31]} 61. Bb4+ {[%clk 0:00:23]}  Ke6 {[%clk 0:00:31]} 62. f4 {[%clk 0:00:21]}  Bc6 {[%clk 0:00:21]} 63. g3 {[%clk 0:00:17]}  Bg2 {[%clk 0:00:21]} 64. g4 {[%clk 0:00:13]}  Bxh3 {[%clk 0:00:18]} 65. Kxh5 {[%clk 0:00:13]}  Kf7 {[%clk 0:00:18]} 66. Kh4 {[%clk 0:00:12]}  Bf1 {[%clk 0:00:18]} 67. Kg5 {[%clk 0:00:13]}  Bc4 {[%clk 0:00:12]} 68. f5 {[%clk 0:00:13]}  Kg7 {[%clk 0:00:12]} 69. Bc3+ {[%clk 0:00:12]}  Kf7 {[%clk 0:00:07]} 70. Kh6 {[%clk 0:00:11]}  Bd3 {[%clk 0:00:06]} 71. Kg5 {[%clk 0:00:12]}  Be2 {[%clk 0:00:06]} 72. Kf4 {[%clk 0:00:12]}  Bd1 {[%clk 0:00:07]} 73. g5 {[%clk 0:00:12]}  Bh5 {[%clk 0:00:07]} 74. Kg3 {[%clk 0:00:10]}  Ke7 {[%clk 0:00:04]} 75. g6 {[%clk 0:00:08]}  Bd1 {[%clk 0:00:03]} 76. Kf4 {[%clk 0:00:06]}  Bc2 {[%clk 0:00:03]} 77. f6+ {[%clk 0:00:04]}  Kf8 {[%clk 0:00:02]} 78. Bb4+ {[%clk 0:00:02]}  Kg8 {[%clk 0:00:01]} 79. f7+ {[%clk 0:00:02]}  Kg7 {[%clk 0:00:02]} 80. f8=Q+ {[%clk 0:00:03]}  Kxg6 {[%clk 0:00:03]} 81. Qe7 {[%clk 0:00:02]}  Bd3 {[%clk 0:00:03]} 82. Qc5 {[%clk 0:00:03]}  Bc4 {[%clk 0:00:03]} 83. Qg5+ {[%clk 0:00:03]}  Kf7 {[%clk 0:00:03]} 84. Bc3 {[%clk 0:00:04]}  Ke6 {[%clk 0:00:03]} 85. Qf6+ {[%clk 0:00:04]}  Kd7 {[%clk 0:00:04]} 86. Qd4+ {[%clk 0:00:05]}  Kc6 {[%clk 0:00:04]} 87. Bb4 {[%clk 0:00:06]}  Kc7 {[%clk 0:00:04]} 88. Qc5+ {[%clk 0:00:06]}  Kd7 {[%clk 0:00:04]} 89. Ke5 {[%clk 0:00:07]}  Bf1 {[%clk 0:00:03]} 90. Qd6+ {[%clk 0:00:08]}  Kc8 {[%clk 0:00:03]} 91. Ba5 {[%clk 0:00:08]}  Kb7 {[%clk 0:00:04]} 92. Qb6+ {[%clk 0:00:08]}  Ka8 {[%clk 0:00:03]} 93. Kd6 {[%clk 0:00:08]}  b4 {[%clk 0:00:03]} 94. Kc7 {[%clk 0:00:09]}  Bg2 {[%clk 0:00:03]} 95. Qb8# {[%clk 0:00:09]} 1-0


[Site "https://www.chess.com"]